{"text_format":"1","workbook":"xlsx","n_sheets":2,"sheets":["Veiledning","rapportering"],"not_rendered":{"charts":0,"images":1,"macros":0,"external_links":0,"defined_names":4,"comments":0,"pivot_tables":0},"unopened":[],"bounds":{"document_bytes":16777216,"sheet_cells":100000,"rows_first":2000,"rows_last":500,"rows_between":2000,"halvings":0,"cell_chars":16384,"cell_head_chars":4096},"cells_cut":0,"cells_raw":0,"read":"whole","date_system":"1900"}

{"sheet":"Veiledning","index":0,"n_rows":4,"n_cols":2,"rows_kept":4,"cut":false,"hidden":false,"merged":[[1,1,2,11],[3,1,3,11]]}
[]
[null,"* Dersom man vil lage flere rader for å skrive mer under \"Annen\" i utdanningstype, velg da de to radene der det står \"Annen\" og en under, høyreklikk og velg \"ta frem\". Det vil da komme opp ekstra rader som vi har laget på forhånd. Vi ber om at dere ikke lager rader selv, da dette kan føre til eventuelle feil i kalkuleringen\n"]
[]
[null,"Klikk her for å gå tilbake til rapporteringskjema"]

{"sheet":"rapportering","index":1,"n_rows":177,"n_cols":9,"rows_kept":177,"cut":false,"hidden":false,"merged":[[12,1,12,8],[13,1,14,1],[13,2,13,3],[13,4,13,7],[13,8,14,8],[15,8,17,8],[1,1,1,8],[2,2,2,8],[3,2,3,8],[4,2,4,8],[5,2,5,8],[11,1,11,8],[28,1,28,8],[29,1,30,1],[29,2,29,3],[29,4,29,7],[29,8,30,8],[31,8,38,8],[18,1,18,8],[19,1,20,1],[19,2,19,3],[19,4,19,7],[19,8,20,8],[21,8,27,8],[51,1,51,8],[52,1,53,1],[52,2,52,3],[52,4,52,7],[52,8,53,8],[54,8,58,8],[39,1,39,8],[40,1,41,1],[40,2,40,3],[40,4,40,7],[40,8,41,8],[42,8,50,8],[67,1,67,8],[68,2,68,7],[68,8,71,8],[69,2,69,7],[70,2,70,7],[71,2,71,7],[59,1,59,8],[60,1,61,1],[60,2,60,3],[60,4,60,7],[60,8,61,8],[62,8,66,8],[83,1,83,8],[84,1,84,8],[85,1,85,2],[85,4,85,8],[86,1,86,2],[86,4,86,8],[72,1,72,8],[73,1,73,8],[75,1,75,8],[76,1,77,1],[76,2,76,4],[76,5,76,8],[90,1,90,2],[90,4,90,8],[91,1,91,2],[91,4,91,8],[92,1,92,2],[92,4,92,8],[87,1,87,2],[87,4,87,8],[88,1,88,2],[88,4,88,8],[89,1,89,2],[89,4,89,8],[98,1,98,8],[99,1,99,8],[100,1,100,8],[101,1,101,8],[102,1,102,8],[103,1,103,8],[93,1,93,2],[93,4,93,8],[94,1,94,8],[95,1,95,8],[96,1,96,8],[97,1,97,8],[112,1,112,2],[113,1,113,2],[114,1,114,2],[115,1,115,2],[116,1,116,2],[117,1,117,2],[104,1,104,8],[105,1,105,8],[106,1,106,3],[106,4,106,8],[107,1,107,2],[107,4,118,8],[108,1,108,3],[109,1,109,2],[110,1,110,2],[111,1,111,2],[122,1,122,8],[123,1,123,2],[123,3,123,8],[124,1,124,2],[124,3,124,8],[126,1,126,7],[118,1,118,2],[119,1,119,8],[120,1,120,2],[120,4,120,8],[121,1,121,2],[121,4,121,8],[137,1,137,8],[138,1,140,8],[141,1,141,8],[142,1,144,8],[145,1,145,8],[146,1,148,8],[127,1,127,8],[128,1,129,8],[130,1,130,8],[131,1,132,8],[133,1,133,8],[134,1,136,8],[157,1,157,2],[158,1,158,2],[159,1,159,2],[160,1,160,2],[161,1,161,2],[162,1,162,2],[149,1,149,8],[150,1,150,3],[150,4,150,8],[151,1,151,2],[151,4,162,8],[152,1,152,3],[153,1,153,2],[154,1,154,2],[155,1,155,2],[156,1,156,2],[167,1,167,2],[167,3,167,8],[168,1,168,2],[168,3,168,8],[163,1,163,8],[164,1,164,2],[164,4,164,8],[165,1,165,2],[165,4,165,8],[166,1,166,8]]}
[]
[null,"1. Informasjon om kommunen "]
[null,"1.1. Navn på kommunen"]
[null,"1.2. Kontaktperson"]
[null,"1.3. E-post"]
[null,"1.4. Telefon"]
[]
[null,"Rapportering fra kommunen til Fylkesmannen"]
[null," - Kap761, post 68 \" Kommunalt kompetanse- og innovasjonstilskudd\""]
[null," - Kap761, post 78 \" Nasjonalt velferdsteknologiprogram - innføring av velferdsteknologiske løsninger\""]
[]
[null,"2. Kompetansetiltak (grunn-, videre- og etterutdanning)"]
[null,"2.1. Videregående skole, fag- og yrkesopplæring innen helse (fagbrev)"]
[null,"Utdanningstype","Måloppnåelse (antall ansatte)",null,"Økonomirapportering",null,null,null,"Merknader\n(nærmere om hvilken annen utdanning)"]
[null,null,"Fullført utdanning\n","Samlet antall fullførte og under utdanning ","Søkt beløp","Innvilget beløp ","Ubrukt \nønkes overført","Ubrukt\nbetales tilbake"]
[null,"a. Helsefagarbeider",0,0,0,0,0,0]
[null,"b. Annen utdanning på videregående skolenivå",0,0,0,0,0,0]
[null,"Sum :",{"$f":"SUM(C16:C17)","v":0},{"$f":"SUM(D16:D17)","v":0},{"$f":"SUM(E16:E17)","v":0},{"$f":"SUM(F16:F17)","v":0},{"$f":"SUM(G16:G17)","v":0},0]
[null,"2.2. Fagskoleutdanning"]
[null,"Utdanningstype","Måloppnåelse (antall ansatte)",null,"Økonomirapportering",null,null,null,"Merknader\n(nærmere om hvilken annen utdanning)"]
[null,null,"Fullført utdanning\n","Samlet antall fullførte og under utdanning","Søkt beløp","Innvilget beløp ","Ubrukt \nønkes overført","Ubrukt\nbetales tilbake"]
[null,"a. Psykisk helsearbeid og rusarbeid",0,0,0,0,0,0]
[null,"b. Eldreomsorg/demens",0,0,0,0,0,0]
[null,"c. Habilitering/rehabilitering",0,0,0,0,0,0]
[null,"d. Kreftomsorg/lindrende behandling",0,0,0,0,0,0]
[null,"e. Veiledning",0,0,0,0,0,0]
[null,"f. Annen fagskoleutdanning",0,0,0,0,0,0]
[null,"Sum :",{"$f":"SUM(C22:C27)","v":0},{"$f":"SUM(D22:D27)","v":0},{"$f":"SUM(E22:E27)","v":0},{"$f":"SUM(F22:F27)","v":0},0,0]
[null,"  2.3. Bachelorutdanning helse- og sosialfag"]
[null,"Utdanningstype","Måloppnåelse (antall ansatte)",null,"Økonomirapportering",null,null,null,"Merknader\n(nærmere om hvilken annen utdanning)"]
[null,null,"Fullført utdanning\n","Samlet antall fullførte og under utdanning","Søkt beløp","Innvilget beløp ","Ubrukt \nønkes overført","Ubrukt\nbetales tilbake"]
[null,"a. Sykepleie",0,0,0,0,0,0]
[null,"b. Vernepleie",0,0,0,0,0,0]
[null,"c. Fysioterapi",0,0,0,0,0,0]
[null,"d. Ergoterapi",0,0,0,0,0,0]
[null,"e. Sosial arbeid (sosionom)",0,0,0,0,0,0]
[null,"f. Barnevernspedagogikk",0,0,0,0,0,0]
[null,"g. Annen bachelorutdanning",0,0,0,0,0,0]
[null,"Sum :",{"$f":"SUM(C32:C38)","v":0},{"$f":"SUM(D32:D38)","v":0},{"$f":"SUM(E32:E38)","v":0},{"$f":"SUM(F32:F38)","v":0},0,0]
[null,"  2.4. Videreutdanning og mastergradutdanning (påbygg bachelorutdanning)"]
[null,"Utdanningstype","Måloppnåelse (antall ansatte)",null,"Økonomirapportering",null,null,null,"Merknader\n(nærmere om hvilken annen utdanning)"]
[null,null,"Fullført utdanning\n","Samlet antall fullførte og under utdanning","Søkt beløp","Innvilget beløp ","Ubrukt \nønkes overført","Ubrukt\nbetales tilbake"]
[null,"a. Psykisk helsearbeid og rusarbeid",0,0,0,0,0,0]
[null,"b. Tverrfaglig videreutdanning \n     i psykososialt arbeid med barn og unge",0,0,0,0,0,0]
[null,"c. Eldreomsorg/demens",0,0,0,0,0,0]
[null,"d. Kreftomsorg/lindrende pleie",0,0,0,0,0,0]
[null,"e. Habilitering/rehabilitering",0,0,0,0,0,0]
[null,"f. Veiledning",0,0,0,0,0,0]
[null,"g. Lederutdanning",0,0,0,0,0,0]
[null,"h. Annen videreutdanning og/eller masterutdanning",0,0,0,0,0,0]
[null,"Sum :",{"$f":"SUM(C43:C50)","v":0},{"$f":"SUM(D43:D50)","v":0},{"$f":"SUM(E43:E50)","v":0},{"$f":"SUM(F43:F50)","v":0},0,0]
[null,"2.5. ABC-opplæring"]
[null,"Opplæringstype","Måloppnåelse (antall ansatte)",null,"Økonomirapportering",null,null,null,"Merknader"]
[null,null,"Fullført opplæring ","Samlet antall fullførte og under opplæring ","Søkt beløp","Innvilget beløp ","Ubrukt \nønkes overført","Ubrukt\nbetales tilbake"]
[null,"a. Demensomsorgens ABC",0,0,0,0,0,0]
[null,"b. Eldreomsorgens ABC",0,0,0,0,0,0]
[null,"c. Mitt livs ABC",0,0,0,0,0,0]
[null,"d. Velferdsteknologien ABC",0,0,0,0,0,0]
[null,"Sum :",{"$f":"SUM(C55:C58)","v":0},{"$f":"SUM(D55:D58)","v":0},{"$f":"SUM(E55:E58)","v":0},{"$f":"SUM(F55:F58)","v":0},{"$f":"SUM(G55:G58)","v":0},{"$f":"SUM(H55:H58)","v":0}]
[null,"2.6. Annen internopplæring / korte etterutdanninger /kurs mv."]
[null,"Opplæringstype","Måloppnåelse (antall ansatte)",null,"Økonomirapportering",null,null,null,"Merknader\n(nærmere om hvilken annen opplæring)"]
[null,null,"Fullført utdanning\n/ opplæring ","Samlet antall fullførte og under utdanning / opplæring ","Søkt beløp","Innvilget beløp ","Ubrukt \nønkes overført","Ubrukt\nbetales tilbake"]
[null,"a.  Innen psykisk helsearbeid og rusfeltet",0,0,0,0,0,0]
[null,"b. Innen eldreomsorg og demensfeltet",0,0,0,0,0,0]
[null,"c. Annet",0,0,0,0,0,0]
[null,"Sum :",{"$f":"SUM(C63:C65)","v":0},0,{"$f":"SUM(E63:E65)","v":0},{"$f":"SUM(F63:F65)","v":0},{"$f":"SUM(G63:G65)","v":0},{"$f":"SUM(H63:H65)","v":0}]
[null,"Total sum (inkludert 2.7.) :",{"$f":"C18+C28+C39+C51+C59+C66","v":0},{"$f":"D18+D28+D39+D51+D59+D66","v":0},{"$f":"E18+E28+E39+E51+E59+E66+C69","v":0},{"$f":"F18+F28+F39+F51+F59+F66+C70","v":0},{"$f":"G18+G28+G39+G51+G59+G66+C71","v":0},{"$f":"H18+H28+H39+H51+H59+H66+C72","v":0}]
[null,"2.7. Andre kompetansehevende tiltak"]
[null,"a. Søkt beløp"]
[null,"b. Innvilget beløp "]
[null,"c. Ubrukt, ønkes overført"]
[null,"d. Ubrukt, betales tilbake"]
[null,"e. Beskrivelse av tiltaket og hva tilskuddet har gått til."]
[]
[]
[null,"3. Opplæringstilskudd BPA (brukerstyrt personlig assistanse)"]
[null,null,"Måloppnåelse (antall personer)",null,null,"Økonomirapportering"]
[null,null,"Søkt ","Innvilget","Gjennomført","Søkt beløp","Utbetalt beløp","Ubrukt \nønkes overført","Ubrukt\nbetales tilbake"]
[null,"a. Arbeidsledere som har fått tilskudd til opplæring",0,0,0,0,0,0,0]
[null,"b. Saksbehandlere som har fått tilskudd til opplæring",0,0,0,0,0,0,0]
[null,"c. Assistenter som har fått tilskudd til opplæring",0,0,0,0,0,0,0]
[null,"Sum :",{"$f":"SUM(C79:C81)","v":0},{"$f":"SUM(D79:D81)","v":0},0,0,0,0,0]
[]
[null,"4. Innovasjonsprosjekter"]
[null,"4.1. Tema for prosjektene det rapporteres på"]
[null,"Tema ",null,"Antall prosjekter","Tittel på prosjekt/merknader"]
[null,"a. Velferdsteknologiske løsninger"]
[null,"b. Samspill med pårørende og frivillige i omsorgssektoren generelt og  \n    demensomsorgen spesielt."]
[null,"c. Legemiddelhåndtering"]
[null,"d. Ernæring"]
[null,"e. Fritidsaktivitet med assistanse"]
[null,"f. Kulturopplevelser"]
[null,"g. Annet"]
[null,"Sum :",null,{"$f":"SUM(D87:D93)","v":0}]
[null,"4.2. Rapportering på kriterier for måloppnåelse \n * Forskningsrapporter og annen dokumentasjon fra innovasjonsprosjekter under denne tilskuddsordningen skal i tillegg sendes Senter for Omsorgsforskning, \n     postmottak@hig.no, Høgskolen i Gjøvik, Postboks 191, 2802 Gjøvik."]
[null,"a. Beskrivelse av brukernes erfaringer og opplevd nytte"]
[]
[null,"b. I hvilken grad har behovet for kompenserende tjenester blitt redusert/vise til redusert behov for kompenserende tjenester?"]
[]
[null,"c. I hvilken grad har nye løsninger gitt kvalitative og økonomiske gevinster for brukerne og kommunen?"]
[]
[null,"d. I hvilken grad har tiltaket overføringsverdi til andre kommuner og betydning for praksis?"]
[]
[null,"e. I hvilken grad og hvordan har innovasjonsmetodikk blitt benyttet i prosjektet?"]
[]
[null,"4.3. Regnskap for innovasjonsprosjekt"]
[null,"Inntektekter",null,null,"Merknader"]
[null,"a. Tilskuddsbeløp fra Fylkesmannen",null,0]
[null,"Utgifter"]
[null,"b. Lønnsutgifter med sosiale utgifter ",null,0]
[null,"c. Reiseutgifter, arrangement, møter, konferanser",null,0]
[null,"d. Konsulenttjenester",null,0]
[null,"e. Trykking, publikasjoner, kunngjøringer, utsending og distribusjonskostnader ",null,0]
[null,"f. Investeringer/ inventar/ utstyr",null,0]
[null,"g. Driftsutgifter, forbruksmateriell og kontortjenester inkludert lokaler og energi",null,0]
[null,"h. Andre utgifter (spesifiser i merknadsteltet)",null,0]
[null,"Sum utgifter",null,{"$f":"SUM(D110:D116)","v":0}]
[null,"Ubrukt tilskudd på rapporteringstidspunktet",null,{"$f":"SUM(D108-D117)","v":0}]
[null,"Søkes overført",null,0]
[null,"4.4. Informasjon om inntekter fra andre kilder"]
[null,"a. Inntekter fra andre kilder/statlige prosjekt",null,0]
[null,"b. Egenfinansiering",null,0]
[null,"4.5. Revisoruttalelse"]
[null,"a. Revisoruttalelse (velg ett alternativ fra nedtrekksliste i neste rute)"]
[null,"b. Kommentarer til revisoruttalelse"]
[]
[null,"5. Nasjonalt velferdsteknologiprogram - innføring av velferdsteknologiske løsninger\n    * Rapportering for punktene ( fra 5.1. til 5.6.) kan sendes som eget vedlegg"]
[null,"5.1. Følges oppgitt fremdriftsplan i prosjektet?  (Inntil 300 ord)"]
[]
[]
[null,"5.2. Hvem er samarbeidspartnere i prosjektet og hvordan er status med tanke på samarbeid? (Inntil 300 ord)"]
[]
[]
[null,"5.3. Hva er status for implementering av velferdsteknologi i kommunene etter fastsatte måltall, hvilke tjenesteinnovasjoner som er gjennomført og   hvilke endringer dette har resultert i? \n      (Inntil 600 ord)"]
[]
[]
[]
[null,"5.4. Hva er forventede og realiserte gevinster av prosjektet for kommunen (spart tid, unngåtte kostnader, økt kvalitet)?  (Inntil 600 ord)"]
[]
[]
[]
[null,"5.5. Hvordan er kommunens planer for skalering av løsningene og overgang til løpende driftsfase, herunder planer for investering og drift av løsninger? (Inntil 600 ord)"]
[]
[]
[]
[null,"5.6. Hvordan er brukermedvirkning sikret i prosjektet? Angi på hvilken måte pasienter, brukere og pårørende er involvert? Hva er resultater for brukerne?(Inntil 600 ord)"]
[]
[]
[]
[null,"5.7. Regnskap for nasjonalt velferdsteknologiprogram - innføring av velferdsteknologiske løsninger"]
[null,"Inntektekter",null,null,"Merknader"]
[null,"a. Tilskuddsbeløp fra Fylkesmannen",null,0]
[null,"Utgifter"]
[null,"b. Lønnsutgifter med sosiale utgifter ",null,0]
[null,"c. Reiseutgifter, arrangement, møter, konferanser",null,0]
[null,"d. Konsulenttjenester",null,0]
[null,"e. Trykking, publikasjoner, kunngjøringer, utsending og distribusjonskostnader ",null,0]
[null,"f. Investeringer/ inventar/ utstyr",null,0]
[null,"g. Driftsutgifter, forbruksmateriell og kontortjenester inkludert lokaler og energi",null,0]
[null,"h. Andre utgifter (spesifiser i merknadsteltet)",null,0]
[null,"Sum utgifter",null,{"$f":"SUM(D154:D160)","v":0}]
[null,"Ubrukt tilskudd på rapporteringstidspunktet",null,{"$f":"SUM(D152-D161)","v":0}]
[null,"Søkes overført",null,0]
[null,"5.8. Informasjon om inntekter fra andre kilder"]
[null,"a. Inntekter fra andre kilder/statlige prosjekt",null,0]
[null,"b. Egenfinansiering",null,0]
[null,"5.9. Revisoruttalelse"]
[null,"a. Revisoruttalelse (velg ett alternativ fra nedtrekksliste i neste rute)"]
[null,"b. Kommentarer til revisoruttalelse"]
[]
[]
[null,null,null,"Dette er styringsarket. Det kan skjules."]
[null,null,null,"Revisoruttalelse"]
[null,null,null,"Revisoruttalelse foreligger uten merknader"]
[null,null,null,"Revisoruttalelse foreligger med merknader"]
[null,null,null,"I tilskuddsbrevet er det ikke krav til revisoruttalelse"]
[null,null,null,"Revisoruttalelse mangler (rapportering ufullstendig)"]